Workbook

Sheet Pasiūlymas
A2: PIRKIMO SĄLYGŲ PRIEDAS "PASIŪLYMŲ FORMA"
A4: VIENKARTINĖS PAGALBINĖS MEDICININĖS PRIEMONĖS
A6: Kam: | B6: VšĮ LSMU Kauno ligoninė
A8: Data: | B8: 2022-08-30
A9: Nr.: | B9: 591167
A10: Vieta: | B10: Kaunas
A12: Tiekėjo pavadinimas / Ūkio subjektų grupės nariai: | C12: UAB "Skirgesa"
A13: Tiekėjo kodas (-ai): | C13: 234449420
A14: Tiekėjo adresas (-ai): | C14: Energetikų g. 8, Kaunas
A15: Tiekėjo PVM mokėtojo kodas(-ai): | C15: LT344494219
A16: Tiekėjo / Ūkio subjektų grupės atsakingo partnerio sąskaitos numeris, banko pavadinimas ir banko kodas (-ai): | C16: A/s. LT41 7300 0100 7979 6368, AB „Swedbank“, banko kodas 73000
A17: Asmens atsakingo už pasiūlymą vardas, pavardė: | C17: Viešųjų pirkimų specialistė Dovilė Andrijauskaitė
A18: Asmens atsakingo už pasiūlymą telefono numeris, el. pašto adresas: | C18: 8 37 478242, info@skirgesa.lt
A19: Tiekėjo / Ūkio subjektų grupės, laimėjimo atveju, pasirašančio sutartį asmens vardas, pavardė, pareigos: | C19: Direktorius Skirmantas Akelis
A20: Tiekėjo / Ūkio subjektų grupės, laimėjimo atveju, už sutarties vykdymą atsakingo asmens vardas, pavardė, telefono numeris, elektroninio pašto adresas: | C20: Direktorius Skirmantas Akelis 8 37 478242, info@skirgesa.lt
A21: (1) Tiekėjo / Ūkio subjektų grupės narių, (2) ūkio subjektų, kurių pajėgumais remiamasi, ir (3) jei pašalinimo pagrindai taikomi visiems subtiekėjams - subtiekėjų, kolegialaus priežiūros organo (Stebėtojų tarybos) ir (ar) kolegialaus valdymo organo (Valdybos) narių sąrašas (jei sudaryta) ir (ar) asmuo, kuriam suteikti VPĮ 46 str. 2 d. 2 p. numatyti įgaliojimai | C21: _ | G21: =IF((SUMPRODUCT(--(C21=""))>0), "Privaloma užpildyti, kai taikomi pašalinimo pagrindai", "") -> 
A23: Tiekėjo patvirtinimai:
A24: 1. Šiuo pasiūlymu pažymime, kad sutinkame su visomi pirkimo sąlygomis, nustatytomis:
A25: 1.1. viešojo pirkimo dokumentuose
A26: 1.2. kituose pirkimo dokumentuose (jų paaiškinimuose, papildymuose).
A27: 2. Patvirtiname, kad informacija ir duomenys, pateikti pasiūlyme, yra teisingi ir apima viską, ko reikia tinkamam sutarties įvykdymui
A28: 3. Patvirtiname, kad jei pasiūlyme nenurodyti kolegialaus priežiūros/valdymo organų nariai, šie organai juridiniuose asmenyse nėra sudaryti (taikoma, kai pirkimo dokumentuose nustatyti pašalinimo pagrindai).
A29: 4. Pasiūlymas galioja iki termino, nustatyto pirkimo dokumentuose.
A30: 5. Tais atvejais, kai pagal galiojančius teisės aktus tiekėjui nereikia mokėti PVM, jis nurodo priežastis, dėl kurių PVM nemoka:
A32: 1. DALIS | B32: PLOVIMO SISTEMA ARTROSKOPIJAI
A34: Tiekėjo pasiūlymas:
A35: Nr. | B35: Pavadinimas | C35: Kiekis | D35: Mato vienetas | E35: Įkainis be PVM, Eur | F35: Suma be PVM, Eur | G35: Siūlomos prekės, pavadinimas, gamintojas, kodas | H35: Tiekėjo siūlomi parametrai ir parametrą pagrindžiantys dokumentai
A36: 1. | B36: Plovimo sistema artroskopijai
A37: 1.1. | B37: Plovimo sistema artroskopijai | C37: 3500 | D37: vnt | E37: 1.84 | F37: =IF(ISBLANK(E37),"", PRODUCT(C37,E37)) -> 6440 | G37: T.U.R. / Arthroscopy Set, Plasti-med Medical Plastic Products Ind. Tic. Ltd. Sti., 165 111
A38: 1.1.1. | B38: Ilgis 2m (±15cm) | H38: Ilgis 2.15m Žr. „KONFIDENCIALU_Katalogai“ .pdf, psl. 1, 2.
E39: Suma be PVM | F39: =IF((COUNT(C37:C38)<>COUNT(F37:F38)),"", SUM(F37:F38)) -> 6440 | G39: =IF((COUNT(C37:C38)<>COUNT(F37:F38)),"Neužpildytos visų objektų kainos", "") -> 
E40: PVM suma | F40: 322
E41: Suma su PVM | F41: =IF(ISBLANK(F40), "", SUM(F39:F40)) -> 6762
A48: 3. DALIS | B48: PRAILGINIMO LINIJA
A50: Tiekėjo pasiūlymas:
A51: Nr. | B51: Pavadinimas | C51: Kiekis | D51: Mato vienetas | E51: Įkainis be PVM, Eur | F51: Suma be PVM, Eur | G51: Siūlomos prekės, pavadinimas, gamintojas, kodas | H51: Tiekėjo siūlomi parametrai ir parametrą pagrindžiantys dokumentai
A52: 3. | B52: Prailginimo linija
A53: 3.1. | B53: Prailginimo linija 10 - 15 cm ilgio su 3 beadatiniais konektoriais ir 3 skirtingų spalvų spaustukais | C53: 500 | D53: vnt | E53: 3.8 | F53: =IF(ISBLANK(E53),"", PRODUCT(C53,E53)) -> 1900 | G53: Extention line for infusion, Cair LGL SA, PY3x01NCM
A54: 3.1.1. | B54: Prailginimo linija su skaidriu konektoriumi, tinkančiu leisti vaistams, kraujui ir kraujo produktams, biologiniams skysčiams ir lipidams, chemoterepiniams vaistams | H54: Prailginimo linija su skaidriu konektoriumi, tinkančiu leisti vaistams, kraujui ir kraujo produktams, biologiniams skysčiams ir lipidams, chemoterepiniams vaistams Žr. „KONFIDENCIALU_Katalogai“ .pdf, psl. 11-14.
A55: 3.1.2. | B55: Nėra latekso, metalinių dalių, vožtuvo | H55: Nėra latekso, metalinių dalių, vožtuvo Žr. „KONFIDENCIALU_Katalogai“ .pdf, psl. 11-14.
A56: 3.1.3. | B56: Lygus kontaktinis valomasisi paviršius | H56: Lygus kontaktinis valomasisi paviršius Žr. „KONFIDENCIALU_Katalogai“ .pdf, psl. 11-14.
A57: 3.1.4. | B57: Konstrukcija - prasiskirianti membrana su vidine kaniule | H57: Konstrukcija - prasiskirianti membrana su vidine kaniule Žr. „KONFIDENCIALU_Katalogai“ .pdf, psl. 11-14.
A58: 3.1.5. | B58: Gali būti nepertraukiamai naudojamas iki 7 parų | H58: Gali būti nepertraukiamai naudojamas iki 7 parų Žr. „KONFIDENCIALU_Katalogai“ .pdf, psl. 11-14.
A59: 3.1.6. | B59: Neutralaus poslinkio - 0,004ml | H59: Neutralaus poslinkio - 0,004ml Žr. „KONFIDENCIALU_Katalogai“ .pdf, psl. 11-14.
A60: 3.1.7. | B60: Tėkmė ≥ 350 ml/min | H60: Tėkmė 600 ml/min Žr. „KONFIDENCIALU_Katalogai“ .pdf, psl. 11-14.
A61: 3.1.8. | B61: Svoris ≤ 1 g | H61: Svoris 1 g Žr. „KONFIDENCIALU_Katalogai“ .pdf, psl. 11-14.
A62: 3.1.9. | B62: Liekamasis tūris ≤ 0,08 ml | H62: Liekamasis tūris 0.049 ml Žr. „KONFIDENCIALU_Katalogai“ .pdf, psl.
A63: 3.1.10. | B63: Prailginimo linijos storis 2,5mm (±0,01mm) | H63: Prailginimo linijos storis 2,5mm Žr. „KONFIDENCIALU_Katalogai“ .pdf, psl. 11-14.
A64: 3.1.11. | B64: 10 - 15 cm ilgio su 3 beadatiniais konektoriais ir 3 skirtingų spalvų spaustukais | H64: 10 cm ilgio su 3 beadatiniais konektoriais ir 3 skirtingų spalvų spaustukais Žr. „KONFIDENCIALU_Katalogai“ .pdf, psl. 11-14.
E65: Suma be PVM | F65: =IF((COUNT(C53:C64)<>COUNT(F53:F64)),"", SUM(F53:F64)) -> 1900 | G65: =IF((COUNT(C53:C64)<>COUNT(F53:F64)),"Neužpildytos visų objektų kainos", "") -> 
E66: PVM suma | F66: 95
E67: Suma su PVM | F67: =IF(ISBLANK(F66), "", SUM(F65:F66)) -> 1995
A71: 4. DALIS | B71: MONITORINGO LINIJA CO2 MATAVIMUI
A73: Tiekėjo pasiūlymas:
A74: Nr. | B74: Pavadinimas | C74: Kiekis | D74: Mato vienetas | E74: Įkainis be PVM, Eur | F74: Suma be PVM, Eur | G74: Siūlomos prekės, pavadinimas, gamintojas, kodas | H74: Tiekėjo siūlomi parametrai ir parametrą pagrindžiantys dokumentai
A75: 4. | B75: Monitoringo linija CO2 matavimui
A76: 4.1. | B76: Monitoringo linija | C76: 200 | D76: vnt | E76: 0.82 | F76: =IF(ISBLANK(E76),"", PRODUCT(C76,E76)) -> 164 | G76: Gas sampling line, Altera Meditera, AL-0512
A77: 4.1.1. | B77: Vienkartinė, kliniškai švari | H77: Vienkartinė, kliniškai švari Žr. „KONFIDENCIALU_Katalogai“ .pdf, psl. 15.
A78: 4.1.2. | B78: Vamzdelis skaidrus, lankstus | H78: Vamzdelis skaidrus, lankstus Žr. „KONFIDENCIALU_Katalogai“ .pdf, psl. 15.
A79: 4.1.3. | B79: Suspaudus vamzdelį neturi likti likutinės deformacijos žymių | H79: Suspaudus vamzdelį neturi likti likutinės deformacijos žymių Žr. „KONFIDENCIALU_Katalogai“ .pdf, psl. 15.
A80: 4.1.4. | B80: Abiem užsukamomis vyriškos formos Luer tipo jungtimis | H80: Abiem užsukamomis vyriškos formos Luer tipo jungtimis Žr. „KONFIDENCIALU_Katalogai“ .pdf, psl. 15.
A81: 4.1.5. | B81: Ilgis ne mažiau 3 m | H81: Ilgis 3 m Žr. „KONFIDENCIALU_Katalogai“ .pdf, psl. 15.
A82: 4.2. | B82: Monitoringo linija | C82: 40 | D82: vnt | E82: 0.82 | F82: =IF(ISBLANK(E82),"", PRODUCT(C82,E82)) -> 32.8 | G82: Gas sampling line, Altera Meditera, Al-0513
A83: 4.2.1. | B83: Vienkartinė, kliniškai švari | H83: Vienkartinė, kliniškai švari Žr. „KONFIDENCIALU_Katalogai“ .pdf, psl. 16.
A84: 4.2.2. | B84: Vamzdelis skaidrus, minkštas, lankstus | H84: Vamzdelis skaidrus, lankstus Žr. „KONFIDENCIALU_Katalogai“ .pdf, psl. 16.
A85: 4.2.3. | B85: Suspaudus vamzdelį neturi likti likutinės deformacijos žymių | H85: Suspaudus vamzdelį neturi likti likutinės deformacijos žymių Žr. „KONFIDENCIALU_Katalogai“ .pdf, psl. 16.
A86: 4.2.4. | B86: Viena vyriškos formos Luer tipo jungtimi, kita moteriškos formos jungtimi | H86: Viena vyriškos formos Luer tipo jungtimi, kita moteriškos formos jungtimi Žr. „KONFIDENCIALU_Katalogai“ .pdf, psl. 16.
A87: 4.2.5. | B87: Ilgis ne mažiau 3m | H87: Ilgis 3mŽr. „KONFIDENCIALU_Katalogai“ .pdf, psl. 16.
E88: Suma be PVM | F88: =IF((COUNT(C76:C87)<>COUNT(F76:F87)),"", SUM(F76:F87)) -> 196.8 | G88: =IF((COUNT(C76:C87)<>COUNT(F76:F87)),"Neužpildytos visų objektų kainos", "") -> 
E89: PVM suma | F89: =F88*1.05-F88 -> 9.84
E90: Suma su PVM | F90: =IF(ISBLANK(F89), "", SUM(F88:F89)) -> 206.64
A94: 5. DALIS | B94: 4 KRANELIŲ BLOKAS SU 5 BEADATINIAIS KONEKTORIAIS
A96: Tiekėjo pasiūlymas:
A97: Nr. | B97: Pavadinimas | C97: Kiekis | D97: Mato vienetas | E97: Įkainis be PVM, Eur | F97: Suma be PVM, Eur | G97: Siūlomos prekės, pavadinimas, gamintojas, kodas | H97: Tiekėjo siūlomi parametrai ir parametrą pagrindžiantys dokumentai
A98: 5. | B98: 4 kranelių blokas su 5 beadatiniais konektoriais
A99: 5.1. | B99: 4 kranelių blokas su 5 beadatiniais konektoriais | C99: 20 | D99: vnt | E99: 7.6 | F99: =IF(ISBLANK(E99),"", PRODUCT(C99,E99)) -> 152 | G99: Manifolds with holder, Cair LGL SA, RM4000NCA
A100: 5.1.1. | B100: Neišardomas kranelių blokas su prisukamu laikikliu prie lašelinės stovo | H100: Neišardomas kranelių blokas su prisukamu laikikliu prie lašelinės stovo Žr. „KONFIDENCIALU_Katalogai“ .pdf, psl. 17-20.
A101: 5.1.2. | B101: Konektoriai, tinkantys leisti vaistams, kraujui ir kraujo produktams, biologiniams skysčiams ir lipidams, chemoterepiniams vaistams | H101: Konektoriai, tinkantys leisti vaistams, kraujui ir kraujo produktams, biologiniams skysčiams ir lipidams, chemoterepiniams vaistams Žr. „KONFIDENCIALU_Katalogai“ .pdf, psl. 17-20.
A102: 5.1.3. | B102: Nėra latekso, metalinių dalių, vožtuvo | H102: Nėra latekso, metalinių dalių, vožtuvo Žr. „KONFIDENCIALU_Katalogai“ .pdf, psl. 17-20.
A103: 5.1.4. | B103: Lygus kontaktinis valomasis paviršius | H103: Lygus kontaktinis valomasis paviršius Žr. „KONFIDENCIALU_Katalogai“ .pdf, psl. 17-20.
A104: 5.1.5. | B104: Konstrukcija - prasiskirianti membrana su vidine kaniule | H104: Konstrukcija - prasiskirianti membrana su vidine kaniule Žr. „KONFIDENCIALU_Katalogai“ .pdf, psl. 17-20.
A105: 5.1.6. | B105: Gali būti nepertraukiamai naudojamas iki 7 parų | H105: Gali būti nepertraukiamai naudojamas iki 7 parų Žr. „KONFIDENCIALU_Katalogai“ .pdf, psl. 17-20.
A106: 5.1.7. | B106: Neutralaus poslinkio - 0,004ml | H106: Neutralaus poslinkio - 0,004ml Žr. „KONFIDENCIALU_Katalogai“ .pdf, psl. 17-20.
A107: 5.1.8. | B107: Tėkmė ≥ 350 ml/min | H107: Tėkmė 350 ml/min Žr. „KONFIDENCIALU_Katalogai“ .pdf, psl. 17-20.
A108: 5.1.9. | B108: Svoris ≤ 1 g | H108: Svoris 1 g Žr. „KONFIDENCIALU_Katalogai“ .pdf, psl. 17-20.
A109: 5.1.10. | B109: Liekamasis tūris ≤ 0,05 ml | H109: Liekamasis tūris 0,049 ml Žr. „KONFIDENCIALU_Katalogai“ .pdf, psl. 17-20.
E110: Suma be PVM | F110: =IF((COUNT(C99:C109)<>COUNT(F99:F109)),"", SUM(F99:F109)) -> 152 | G110: =IF((COUNT(C99:C109)<>COUNT(F99:F109)),"Neužpildytos visų objektų kainos", "") -> 
E111: PVM suma | F111: 7.6
E112: Suma su PVM | F112: =IF(ISBLANK(F111), "", SUM(F110:F111)) -> 159.6
A119: 9. DALIS | B119: AMBU MAIŠAI VIENKARTINIO NAUDOJIMO
A121: Tiekėjo pasiūlymas:
A122: Nr. | B122: Pavadinimas | C122: Kiekis | D122: Mato vienetas | E122: Įkainis be PVM, Eur | F122: Suma be PVM, Eur | G122: Siūlomos prekės, pavadinimas, gamintojas, kodas | H122: Tiekėjo siūlomi parametrai ir parametrą pagrindžiantys dokumentai
A123: 9. | B123: Ambu maišai vienkartinio naudojimo
A124: 9.1. | B124: Ambu maišas (rinkinys) su kauke vienkartinio naudojimo, suaugusiems | C124: 500 | D124: vnt | E124: 8.75 | F124: =IF(ISBLANK(E124),"", PRODUCT(C124,E124)) -> 4375 | G124: Disposable resuscitator, Plastimed, 130 255
A125: 9.1.1. | B125: Sukomplektuotas naudojimui naudojimui | H125: Sukoplektuotas naudojimui Žr. „KONFIDENCIALU_Katalogai“ .pdf, psl. 28.
A126: 9.1.2. | B126: Gaminio sudėtyje nėra latekso | H126: Gaminio sudėryje nėra latekso Žr. „KONFIDENCIALU_Katalogai“ .pdf, psl. 30.
A127: 9.1.3. | B127: Su 360 laipsnių kampu besisukančia paciento jungtimi | H127: Su 360 laipsnių kampu besisukančia paciento jungtimi Žr. „KONFIDENCIALU_Katalogai“ .pdf, psl. 29.
A128: 9.1.4. | B128: Deguonies vamzdelis- ne lygiasienis, su specialiu vidiniu profiliu, atsijungia nuo rezervinio maišo, jungtis kūginė | H128: Deguonies vamzdelis - ne lygiasienis, su specialiu vidiniu profiliu, atsijungia nuo rezervinio maišo, jungtis kūginė Žr. „KONFIDENCIALU_Katalogai“ .pdf, psl. 28, 31.
A129: 9.1.5. | B129: Komplekto sudėtis: 5 dydžio kaukė, ne mažiau kaip 2 m deguonies vamzdelis, 1500-1700ml talpos maišas, papildomas rezervuaras deguoniui | H129: Koplekto sudėtis: 5 dydžio kaukė, 2 m deguonies vamzdelis 1500ml talpos maišas, papildomas rezervuaras deguonimi Žr. „KONFIDENCIALU_Katalogai“ .pdf, psl. 28, 29.
A130: 9.2. | B130: Ambu maišas (rinkinys) su kauke vienkartinio naudojimo, naujagimiams | C130: 50 | D130: vnt | E130: 9.1 | F130: =IF(ISBLANK(E130),"", PRODUCT(C130,E130)) -> 455 | G130: Disposable resuscitator, Plastimed, 130 253
A131: 9.2.1. | B131: Sukomplektuotas naudojimui naudojimui | H131: Sukomplektuotas naudojimui Žr. „KONFIDENCIALU_Katalogai“ .pdf, psl. 28.
A132: 9.2.2. | B132: Gaminio sudėtyje nėra latekso | H132: Gaminio sudėryje nėra latekso Žr. „KONFIDENCIALU_Katalogai“ .pdf, psl. 30.
A133: 9.2.3. | B133: Su 360 laipsnių kampu besisukančia paciento jungtimi | H133: Su 360 laipsnių kampu besisukančia paciento Žr. „KONFIDENCIALU_Katalogai“ .pdf, psl. 29.
A134: 9.2.4. | B134: Deguonies vamzdelis- ne lygiasienis, su specialiu vidiniu profiliu, atsijungia nuo rezervinio maišo, jungtis kūginė | H134: Deguonies vamzdelis- ne lygiasienis, su specialiu vidiniu profiliu, atsijungia nuo rezervinio maišo, jungtis kūginė Žr. „KONFIDENCIALU_Katalogai“ .pdf, psl. 28, 31.
A135: 9.2.5. | B135: Komplekto sudėtis: 3 dydžio kaukė, ne mažiau kaip 2 m deguonies vamzdelis, 280-300ml talpos maišas, numetimo vožtuvas atsidarantis esant 40cm H2O stulpelio, papildomas rezervuaras deguoniui | H135: Komplekto sudėtis: 3 dydžio kaukė, 2 m deguonies vamzdelis, 280ml talpos maišas, numetimo vožtuvas atsidarantis esant 40cm H2O stulpelio, papildomas rezervuaras Žr. „KONFIDENCIALU_Katalogai“ .pdf, psl. 28, 29.
E136: Suma be PVM | F136: =IF((COUNT(C124:C135)<>COUNT(F124:F135)),"", SUM(F124:F135)) -> 4830 | G136: =IF((COUNT(C124:C135)<>COUNT(F124:F135)),"Neužpildytos visų objektų kainos", "") -> 
E137: PVM suma | F137: =F136*1.05-F136 -> 241.5
E138: Suma su PVM | F138: =IF(ISBLANK(F137), "", SUM(F136:F137)) -> 5071.5
A142: 10. DALIS | B142: AMBU MAIŠAI DAUGKARTINIO NAUDOJIMO
A144: Tiekėjo pasiūlymas:
A145: Nr. | B145: Pavadinimas | C145: Kiekis | D145: Mato vienetas | E145: Įkainis be PVM, Eur | F145: Suma be PVM, Eur | G145: Siūlomos prekės, pavadinimas, gamintojas, kodas | H145: Tiekėjo siūlomi parametrai ir parametrą pagrindžiantys dokumentai
A146: 10. | B146: Ambu maišai daugkartinio naudojimo
A147: 10.1. | B147: Ambu maišas (rinkinys) su kauke daugkartinio naudojimo, suaugusiems | C147: 10 | D147: vnt | E147: 29.5 | F147: =IF(ISBLANK(E147),"", PRODUCT(C147,E147)) -> 295 | G147: Reusable Manual resuscitator, Plastimed, 130252
A148: 10.1.1. | B148: Sukomplektuotas naudojimui naudojimui | H148: Sukompletuotas naudojimui Žr. „KONFIDENCIALU_Katalogai“ .pdf, psl. 32.
A149: 10.1.2. | B149: Gaminio sudėtyje nėra latekso | H149: Gaminio sudėtyje nėra latekso Žr. „KONFIDENCIALU_Katalogai“ .pdf, psl. 34,
A150: 10.1.3. | B150: Silikoninis su 360 laipsnių kampu besisukančia paciento jungtimi | H150: Silikoniis su 360 laipsnių kampu besisukančia paciento jungtimi Žr. „KONFIDENCIALU_Katalogai“ .pdf, psl. 33.
A151: 10.1.4. | B151: Deguonies vamzdelis- ne lygiasienis, su specialiu vidiniu profiliu, atsijungia nuo rezervinio maišo, jungtis kūginė | H151: Deguonies vamzdelis- ne lygiasienis, su specialiu vidiniu profiliu, atsijungia nuo rezervinio maišo, jungtis kūginė Žr. „KONFIDENCIALU_Katalogai“ .pdf, psl. 32, 35.
A152: 10.1.5. | B152: Komplekto sudėtis: 5 dydžio kaukė, ne mažiau kaip 2 m deguonies vamzdelis, 1500 ml (± 10ml) talpos maišas, papildomas rezervuaras deguoniui | H152: Komplekto sudėtis: 5 dydžio kaukė, 2 m deguonies vamzdelis, 1500 ml talpos maišas, papildomas rezervuaras Žr. „KONFIDENCIALU_Katalogai“ .pdf, psl. 32, 33.
A153: 10.2. | B153: Ambu maišas (rinkinys) su kauke daugkartinio naudojimo, naujagimiams | C153: 5 | D153: vnt | E153: 29.5 | F153: =IF(ISBLANK(E153),"", PRODUCT(C153,E153)) -> 147.5 | G153: Reusable Manual resusicitator, Plastimed, 130250
A154: 10.2.1. | B154: Sukomplektuotas naudojimui naudojimui | H154: Sukompletuotas naudojimui Žr. „KONFIDENCIALU_Katalogai“ .pdf, psl. 32.
A155: 10.2.2. | B155: Gaminio sudėtyje nėra latekso | H155: Gaminio sudėtyje nėra latekso Žr. „KONFIDENCIALU_Katalogai“ .pdf, psl. 34.
A156: 10.2.3. | B156: Silikoninis su 360 laipsnių kampu besisukančia paciento jungtimi | H156: Silikoniis su 360 laipsnių kampu besisukančia paciento jungtimi Žr. „KONFIDENCIALU_Katalogai“ .pdf, psl. 33.
A157: 10.2.4. | B157: Deguonies vamzdelis- ne lygiasienis, su specialiu vidiniu profiliu, atsijungia nuo rezervinio maišo, jungtis kūginė | H157: Deguonies vamzdelis- ne lygiasienis, su specialiu vidiniu profiliu, atsijungia nuo rezervinio maišo, jungtis kūginė Žr. „KONFIDENCIALU_Katalogai“ .pdf, psl. 32, 35.
A158: 10.2.5. | B158: Komplekto sudėtis: 3 dydžio kaukė, ne mažiau kaip 2 m deguonies vamzdelis, 280 ml (± 5ml) talpos maišas, numetimo vožtuvas atsidarantis esant 40cm H2O stulpelio, papildomas rezervuaras deguoniui | H158: Komplekto sudėtis: 3 dydžio kaukė, 2 m deguonies vamzdelis, 280 ml talpos maišas, numetimo vožtuvas atsidarantis esant 40cm H2O stulpelio, papildomas rezervuaras deguonimi Žr. „KONFIDENCIALU_Katalogai“ .pdf, psl. 32, 33.
E159: Suma be PVM | F159: =IF((COUNT(C147:C158)<>COUNT(F147:F158)),"", SUM(F147:F158)) -> 442.5 | G159: =IF((COUNT(C147:C158)<>COUNT(F147:F158)),"Neužpildytos visų objektų kainos", "") -> 
E160: PVM suma | F160: =F159*1.05-F159 -> 22.125
E161: Suma su PVM | F161: =IF(ISBLANK(F160), "", SUM(F159:F160)) -> 464.625
A168: 12. DALIS | B168: KINTAMO ILGIO PACIENTO JUNGTIS DIRBTINEI VENTILIACIJAI PER TRACHEOSTOMĄ
A170: Tiekėjo pasiūlymas:
A171: Nr. | B171: Pavadinimas | C171: Kiekis | D171: Mato vienetas | E171: Įkainis be PVM, Eur | F171: Suma be PVM, Eur | G171: Siūlomos prekės, pavadinimas, gamintojas, kodas | H171: Tiekėjo siūlomi parametrai ir parametrą pagrindžiantys dokumentai
A172: 12. | B172: Kintamo ilgio paciento jungtis dirbtinei ventiliacijai per tracheostomą
A173: 12.1. | B173: Kintamo ilgio paciento jungtis dirbtinei ventiliacijai per tracheostomą | C173: 300 | D173: vnt | E173: 0.53 | F173: =IF(ISBLANK(E173),"", PRODUCT(C173,E173)) -> 159 | G173: Catheter Mounts, Altera Meditera, AL-17300
A174: 12.1.1. | B174: Chromatinės armonikos dizaino, kas užtikrina reikiamą jungtelės padėtį | H174: Chromatinės armonikos dizaino, kas užtikrina reikiamą jungtelės padėtį Žr. „KONFIDENCIALU_Katalogai“ .pdf, psl. 36.
A175: 12.1.2. | B175: Kintamo ilgio nuo 70-150 mm | H175: Kintamo ilgio nuo 70-150 mm Žr. „KONFIDENCIALU_Katalogai“ .pdf, psl. 37.
A176: 12.1.3. | B176: 22F su šarnyrine jungtimi 22M/15F | H176: 22F su šarnyrine jungtimi 22M/15F Žr. „KONFIDENCIALU_Katalogai“ .pdf, psl. 37.
A177: 12.1.4. | B177: Turi „Flip top“ tipo dangtelį su angele atsiurbti. | H177: Turi „Flip top“ tipo dangtelį su angele atsiurbti Žr. „KONFIDENCIALU_Katalogai“ .pdf, psl. 36.
E178: Suma be PVM | F178: =IF((COUNT(C173:C177)<>COUNT(F173:F177)),"", SUM(F173:F177)) -> 159 | G178: =IF((COUNT(C173:C177)<>COUNT(F173:F177)),"Neužpildytos visų objektų kainos", "") -> 
E179: PVM suma | F179: =F178*1.05-F178 -> 7.95
E180: Suma su PVM | F180: =IF(ISBLANK(F179), "", SUM(F178:F179)) -> 166.95
A187: 20. DALIS | B187: LARINGINĖ KAUKĖ PRIPUČIAMA SU PERTVARĖLĖMIS
A189: Tiekėjo pasiūlymas:
A190: Nr. | B190: Pavadinimas | C190: Kiekis | D190: Mato vienetas | E190: Įkainis be PVM, Eur | F190: Suma be PVM, Eur | G190: Siūlomos prekės, pavadinimas, gamintojas, kodas | H190: Tiekėjo siūlomi parametrai ir parametrą pagrindžiantys dokumentai
A191: 20. | B191: Laringinė kaukė pripučiama su pertvarėlėmis
A192: 20.1. | B192: Laringinė kaukė. N1 | C192: 40 | D192: vnt | E192: 14.75 | F192: =IF(ISBLANK(E192),"", PRODUCT(C192,E192)) -> 590 | G192: Supreme airway, LMA Teleflex, 175010
A193: 20.1.1. | B193: Vienkartinė, sterili, pagaminta iš PVC ar lygiavertės medžiagos | H193: Vienkartinė, sterili, pagaminta iš PVC Žr. „KONFIDENCIALU_Katalogai“ .pdf, psl. 41, 43.
A194: 20.1.2. | B194: Su reguliuojama pripučiama manžete, elipsės formos | H194: Su reguliuojama pripučiama manžete, elipsės formos Žr. „KONFIDENCIALU_Katalogai“ .pdf, psl. 43.
A195: 20.1.3. | B195: Stabili, neužlinkstantis vamzdelis, specialiu kampu leidžiantis įvesti esant įvairioms galvos pozicijoms | H195: Stabili, neužlinkstantis vamzdelis, specialiu kampu leidžiantis įvesti esant įvairioms galvos pozicijoms Žr. „KONFIDENCIALU_Katalogai“ .pdf, psl. 43.
A196: 20.1.4. | B196: 2 angų technologija, stemplinė ir orofaringinė anga | H196: 2 angų technologija, stemplinė ir orofaringinė anga Žr. „KONFIDENCIALU_Katalogai“ .pdf, psl. 42.
A197: 20.1.5. | B197: Integruotas sukandimo blokatorius | H197: Integruotas sukandimo blokatorius Žr. „KONFIDENCIALU_Katalogai“ .pdf, psl. 43.
A198: 20.1.6. | B198: Padidinta, išgaubta PVC manžetė pagerintam prigludimui ir hermetiškumui su pertvarėlėmis nuo epigločio užkritimo | H198: Padidinta, išgaubta PVC manžetė pagerintam prigludimui ir hermetiškumui su pertvarėlėmis nuo epigločio užkritimo Žr. „KONFIDENCIALU_Katalogai“ .pdf, psl. 41-43.
A199: 20.2. | B199: Laringinė kaukė. N2 | C199: 40 | D199: vnt | E199: 14.75 | F199: =IF(ISBLANK(E199),"", PRODUCT(C199,E199)) -> 590 | G199: Supreme airway, LMA Teleflex, 175020
A200: 20.2.1. | B200: Vienkartinė, sterili, pagaminta iš PVC ar lygiavertės medžiagos | H200: Vienkartinė, sterili, pagaminta iš PVC Žr. „KONFIDENCIALU_Katalogai“ .pdf, psl. 41, 43.
A201: 20.2.2. | B201: Su reguliuojama pripučiama manžete, elipsės formos | H201: Su reguliuojama pripučiama manžete, elipsės formos Žr. „KONFIDENCIALU_Katalogai“ .pdf, psl. 43.
A202: 20.2.3. | B202: Stabili, neužlinkstantis vamzdelis, specialiu kampu leidžiantis įvesti esant įvairioms galvos pozicijoms | H202: Stabili, neužlinkstantis vamzdelis, specialiu kampu leidžiantis įvesti esant įvairioms galvos pozicijoms Žr. „KONFIDENCIALU_Katalogai“ .pdf, psl. 43.
A203: 20.2.4. | B203: 2 angų technologija, stemplinė ir orofaringinė anga | H203: 2 angų technologija, stemplinė ir orofaringinė anga Žr. „KONFIDENCIALU_Katalogai“ .pdf, psl. 42.
A204: 20.2.5. | B204: Integruotas sukandimo blokatorius | H204: Integruotas sukandimo blokatorius Žr. „KONFIDENCIALU_Katalogai“ .pdf, psl. 43.
A205: 20.2.6. | B205: Padidinta, išgaubta PVC manžetė pagerintam prigludimui ir hermetiškumui su pertvarėlėmis nuo epigločio užkritimo | H205: Padidinta, išgaubta PVC manžetė pagerintam prigludimui ir hermetiškumui su pertvarėlėmis nuo epigločio užkritimo Žr. „KONFIDENCIALU_Katalogai“ .pdf, psl. 41-43.
A206: 20.3. | B206: Laringinė kaukė. N2,5 | C206: 40 | D206: vnt | E206: 14.75 | F206: =IF(ISBLANK(E206),"", PRODUCT(C206,E206)) -> 590 | G206: Supreme airway, LMA Teleflex, 175025
A207: 20.3.1. | B207: Vienkartinė, sterili, pagaminta iš PVC ar lygiavertės medžiagos | H207: Vienkartinė, sterili, pagaminta iš PVC Žr. „KONFIDENCIALU_Katalogai“ .pdf, psl. 41, 43.
A208: 20.3.2. | B208: Su reguliuojama pripučiama manžete, elipsės formos | H208: Su reguliuojama pripučiama manžete, elipsės formos Žr. „KONFIDENCIALU_Katalogai“ .pdf, psl. 43.
A209: 20.3.3. | B209: Stabili, neužlinkstantis vamzdelis, specialiu kampu leidžiantis įvesti esant įvairioms galvos pozicijoms | H209: Stabili, neužlinkstantis vamzdelis, specialiu kampu leidžiantis įvesti esant įvairioms galvos pozicijoms Žr. „KONFIDENCIALU_Katalogai“ .pdf, psl. 43.
A210: 20.3.4. | B210: 2 angų technologija, stemplinė ir orofaringinė anga | H210: 2 angų technologija, stemplinė ir orofaringinė anga Žr. „KONFIDENCIALU_Katalogai“ .pdf, psl. 42.
A211: 20.3.5. | B211: Integruotas sukandimo blokatorius | H211: Integruotas sukandimo blokatorius Žr. „KONFIDENCIALU_Katalogai“ .pdf, psl. 43.
A212: 20.3.6. | B212: Padidinta, išgaubta PVC manžetė pagerintam prigludimui ir hermetiškumui su pertvarėlėmis nuo epigločio užkritimo | H212: Padidinta, išgaubta PVC manžetė pagerintam prigludimui ir hermetiškumui su pertvarėlėmis nuo epigločio užkritimoŽr. „KONFIDENCIALU_Katalogai“ .pdf, psl. 41-43.
A213: 20.4. | B213: Laringinė kaukė. N3 | C213: 200 | D213: vnt | E213: 14.75 | F213: =IF(ISBLANK(E213),"", PRODUCT(C213,E213)) -> 2950 | G213: Supreme airway, LMA Teleflex, 175030
A214: 20.4.1. | B214: Vienkartinė, sterili, pagaminta iš PVC ar lygiavertės medžiagos | H214: Vienkartinė, sterili, pagaminta iš PVC Žr. „KONFIDENCIALU_Katalogai“ .pdf, psl. 41, 43.
A215: 20.4.2. | B215: Su reguliuojama pripučiama manžete, elipsės formos | H215: Su reguliuojama pripučiama manžete, elipsės formos Žr. „KONFIDENCIALU_Katalogai“ .pdf, psl. 43.
A216: 20.4.3. | B216: Stabili, neužlinkstantis vamzdelis, specialiu kampu leidžiantis įvesti esant įvairioms galvos pozicijoms | H216: Stabili, neužlinkstantis vamzdelis, specialiu kampu leidžiantis įvesti esant įvairioms galvos pozicijoms Žr. „KONFIDENCIALU_Katalogai“ .pdf, psl. 43.
A217: 20.4.4. | B217: 2 angų technologija, stemplinė ir orofaringinė anga | H217: 2 angų technologija, stemplinė ir orofaringinė angaŽr. „KONFIDENCIALU_Katalogai“ .pdf, psl. 42.
A218: 20.4.5. | B218: Integruotas sukandimo blokatorius | H218: Integruotas sukandimo blokatorius Žr. „KONFIDENCIALU_Katalogai“ .pdf, psl. 43.
A219: 20.4.6. | B219: Padidinta, išgaubta PVC manžetė pagerintam prigludimui ir hermetiškumui su pertvarėlėmis nuo epigločio užkritimo | H219: Padidinta, išgaubta PVC manžetė pagerintam prigludimui ir hermetiškumui su pertvarėlėmis nuo epigločio užkritimo Žr. „KONFIDENCIALU_Katalogai“ .pdf, psl. 41-43.
A220: 20.5. | B220: Laringinė kaukė. N4 | C220: 250 | D220: vnt | E220: 14.75 | F220: =IF(ISBLANK(E220),"", PRODUCT(C220,E220)) -> 3687.5 | G220: Supreme airway, LMA Teleflex, 175040
A221: 20.5.1. | B221: Vienkartinė, sterili, pagaminta iš PVC ar lygiavertės medžiagos | H221: Vienkartinė, sterili, pagaminta iš PVC Žr. „KONFIDENCIALU_Katalogai“ .pdf, psl. 41, 43.
A222: 20.5.2. | B222: Su reguliuojama pripučiama manžete, elipsės formos | H222: Su reguliuojama pripučiama manžete, elipsės formos Žr. „KONFIDENCIALU_Katalogai“ .pdf, psl. 43.
A223: 20.5.3. | B223: Stabili, neužlinkstantis vamzdelis, specialiu kampu leidžiantis įvesti esant įvairioms galvos pozicijoms | H223: Stabili, neužlinkstantis vamzdelis, specialiu kampu leidžiantis įvesti esant įvairioms galvos pozicijoms Žr. „KONFIDENCIALU_Katalogai“ .pdf, psl. 43.
A224: 20.5.4. | B224: 2 angų technologija, stemplinė ir orofaringinė anga | H224: 2 angų technologija, stemplinė ir orofaringinė anga Žr. „KONFIDENCIALU_Katalogai“ .pdf, psl. 42.
A225: 20.5.5. | B225: Integruotas sukandimo blokatorius | H225: Integruotas sukandimo blokatorius Žr. „KONFIDENCIALU_Katalogai“ .pdf, psl. 43.
A226: 20.5.6. | B226: Padidinta, išgaubta PVC manžetė pagerintam prigludimui ir hermetiškumui su pertvarėlėmis nuo epigločio užkritimo | H226: Padidinta, išgaubta PVC manžetė pagerintam prigludimui ir hermetiškumui su pertvarėlėmis nuo epigločio užkritimo Žr. „KONFIDENCIALU_Katalogai“ .pdf, psl. 41-43.
A227: 20.6. | B227: Laringinė kaukė. N5 | C227: 100 | D227: vnt | E227: 14.75 | F227: =IF(ISBLANK(E227),"", PRODUCT(C227,E227)) -> 1475 | G227: Supreme airway, LMA Teleflex, 175050
A228: 20.6.1. | B228: Vienkartinė, sterili, pagaminta iš PVC ar lygiavertės medžiagos | H228: Vienkartinė, sterili, pagaminta iš PVC Žr. „KONFIDENCIALU_Katalogai“ .pdf, psl. 41, 43.
A229: 20.6.2. | B229: Su reguliuojama pripučiama manžete, elipsės formos | H229: Su reguliuojama pripučiama manžete, elipsės formos Žr. „KONFIDENCIALU_Katalogai“ .pdf, psl. 43.
A230: 20.6.3. | B230: Stabili, neužlinkstantis vamzdelis, specialiu kampu leidžiantis įvesti esant įvairioms galvos pozicijoms | H230: Stabili, neužlinkstantis vamzdelis, specialiu kampu leidžiantis įvesti esant įvairioms galvos pozicijoms Žr. „KONFIDENCIALU_Katalogai“ .pdf, psl. 43.
A231: 20.6.4. | B231: 2 angų technologija, stemplinė ir orofaringinė anga | H231: 2 angų technologija, stemplinė ir orofaringinė anga Žr. „KONFIDENCIALU_Katalogai“ .pdf, psl. 42.
A232: 20.6.5. | B232: Integruotas sukandimo blokatorius | H232: Integruotas sukandimo blokatorius Žr. „KONFIDENCIALU_Katalogai“ .pdf, psl. 43.
A233: 20.6.6. | B233: Padidinta, išgaubta PVC manžetė pagerintam prigludimui ir hermetiškumui su pertvarėlėmis nuo epigločio užkritimo | H233: Padidinta, išgaubta PVC manžetė pagerintam prigludimui ir hermetiškumui su pertvarėlėmis nuo epigločio užkritimo Žr. „KONFIDENCIALU_Katalogai“ .pdf, psl. 41-43.
E234: Suma be PVM | F234: =IF((COUNT(C192:C233)<>COUNT(F192:F233)),"", SUM(F192:F233)) -> 9882.5 | G234: =IF((COUNT(C192:C233)<>COUNT(F192:F233)),"Neužpildytos visų objektų kainos", "") -> 
E235: PVM suma | F235: =F234*1.05-F234 -> 494.125
E236: Suma su PVM | F236: =IF(ISBLANK(F235), "", SUM(F234:F235)) -> 10376.625
A240: 21. DALIS | B240: LARINGINĖ KAUKĖ APSUNKINTAI INTUBACIJAI
A242: Tiekėjo pasiūlymas:
A243: Nr. | B243: Pavadinimas | C243: Kiekis | D243: Mato vienetas | E243: Įkainis be PVM, Eur | F243: Suma be PVM, Eur | G243: Siūlomos prekės, pavadinimas, gamintojas, kodas | H243: Tiekėjo siūlomi parametrai ir parametrą pagrindžiantys dokumentai
A244: 21. | B244: Laringinė kaukė apsunkintai intubacijai
A245: 21.1. | B245: Laringinė kaukė apsunkintai intubacijai. Dydžiai 1; 1,5; 2; 2,5; 3; 4; 5 pasirinktinai | C245: 100 | D245: vnt | E245: 14.75 | F245: =IF(ISBLANK(E245),"", PRODUCT(C245,E245)) -> 1475 | G245: Supreme airway, LMA Teleflex, 1750XX
A246: 21.1.1. | B246: Sterili vienkartinė, skaidri pagaminta iš PVC ar lygiavertės medžiagos | H246: Sterili, vienkartinė, skaidri, pagaminta iš PVC Žr. „KONFIDENCIALU_Katalogai“ .pdf, psl. 44, 46.
A247: 21.1.2. | B247: Elipsės formos | H247: Elipsės formos Žr. „KONFIDENCIALU_Katalogai“ .pdf, psl. 46.
A248: 21.1.3. | B248: Stabilus, neužlinkstantis vamzdelis, specialiu kampu leidžiantis įvesti esant įvairioms galvos pozicijoms | H248: Stabilus, neužlinkstantis vamzdelis, specialiu kampu leidžiantis įvesti esant įvairioms galvos pozicijoms Žr. „KONFIDENCIALU_Katalogai“ .pdf, psl. 46.
A249: 21.1.4. | B249: 2 angų technologija, su stempline ir orofaringine angomis | H249: 2 angų technologija, su stempline ir orofaringine anga Žr. „KONFIDENCIALU_Katalogai“ .pdf, psl. 45.
A250: 21.1.5. | B250: Integruotas sukandimo blokatorius | H250: Integruotas sukandimo blokatorius Žr. „KONFIDENCIALU_Katalogai“ .pdf, psl. 46.
A251: 21.1.6. | B251: Laikiklis kaukės pozicijos pakeitimui ir/ar fiksavimui | H251: Laikiklis kaukės pozicijos pakeitimui ir/ar fiksavimui Žr. „KONFIDENCIALU_Katalogai“ .pdf, psl. 46.
A252: 21.1.7. | B252: Padidinta, išgaubta PVC manžetė pagerintam prigludimui ir hermetiškumui su pertvarėlėmis nuo epigločio užkritimo | H252: Padidinta, išgaubta PVC manžetė pageriantam, prigludimui ir hermetiškumui su pertvarėlėmis nuo epigločio užkritimo Žr. „KONFIDENCIALU_Katalogai“ .pdf, psl. 46, 47.
... 152 more rows

Sheet Subtiekėjai ir priedai
A2: Ūkio subjektai (įskaitant kvazisubtiekėjus - fiziniai asmenys, kuriuos ketinama įdarbinti pirkimo laimėjimo atveju), kurių pajėgumais tiekėjas remiasi, kad atitiktų keliamus kvalifikacijos reikalavimus:
A5: Pavadinimas* | C5: Kodas, adresas | F5: Perduodami įsipareigojimai | I5: Perduodamų įsipareigojimų dalis nuo visos pirkimo sutarties (Eur arba %) | K5: Kval. Reikalavimo Nr.
A6: _ | C6: _ | F6: _ | I6: _ | K6: _
A10: Subtiekėjams / subteikėjams / subrangovams numatomos perduoti veiklos (privaloma nurodyti) ir šių ūkio subjektų pavadinimai (jei žinomi):
A12: Pavadinimas | C12: Kodas, adresas | F12: Perduodama veikla* | I12: Perduodamos veiklos dalis nuo visos pirkimo sutarties (Eur arba %)
A13: _ | C13: _ | F13: _ | I13: _
A19: Kartu su pasiūlymu pateikiami šie dokumentai:
A21: Nr. | B21: Dokumento pavadinimas | H21: Dokumentas yra konfidencialus? Taip/Ne
A22: 1 | B22: Jungtinės veiklos kopija (jei taikoma) | H22: Netaikoma
A23: 2 | B23: Europos bendrasis viešųjų pirkimų dokumentas | H23: Ne
A24: 3 | B24: Subtiekimo sutartis, ketinimų protokolas, preliminarios sutartys ar kiti dokumentai, patvirtinantys, kad laimėjus pirkimą tiekėjui bus prieinami kitų ūkio subjektų ištekliai (jei pasitelkiami kvalifikacijos atitikimui) | H24: Nepasitelkiama
A25: 4 | B25: Įgaliojimas pasirašyti pasiūlymą | H25: Ne
A26: 5 | B26: Tiekėjo deklaracija | H26: Ne
A27: 6 | B27: KONFIDENCIALU_Katalogai | H27: Taip
B28: Konfidenciali informacija: Žr. „KONFIDENCIALU_Katalogai“ .pdf, psl. 29-31, 33-35, 37-40, 49-52, 55, 56,58, 59, 62, 76,77, 99-121, 126-146, 151-171, 174-177, 186-183, 186-189.
B29: Pasiūlymas galioja iki 2022-12-05 d.
A31: Pasiūlyme nurodyta Prekės kaina, išskyrus jos sudedamąsias dalis, subtiekėjai, taip pat kita informacija, kuri teisės aktų nustatyta tvarka turi būti skelbiama arba kitokiu būdu viešai prieinama visuomenei, nėra laikoma konfidencialia informacija. Konfidencialią informaciją sudaro, visų pirma, komercinė (gamybinė) paslaptis ir konfidencialieji pasiūlymų aspektai. Informacija, kurią viešai skelbti įpareigoja Lietuvos Respublikos įstatymai, negali būti tiekėjo nurodoma kaip konfidenciali, todėl, tiekėjui nurodžius tokią informaciją kaip konfidencialią, perkančioji organizacija turi teisę ją skelbti. Jei tiekėjas nenurodo konfidencialios informacijos, laikoma, kad konfidencialios informacijos tiekėjo pasiūlyme nėra. Vadovaujantis Informacijos viešinimo Centrinėje viešųjų pirkimų informacinėje sistemoje tvarkos aprašu, patvirtintu Viešųjų pirkimų tarnybos direktoriaus 2017 m. birželio 19 d. įsakymu Nr. 1S-91 „Dėl Informacijos viešinimo Centrinėje viešųjų pirkimų informacinėje sistemoje tvarkos aprašo patvirtinimo“, perkančioji organizacija laimėjusio dalyvio pasiūlymą, išskyrus informaciją, kurią tiekėjas nurodė kaip konfidencialią, paskelbs CVP IS.
A34: Tiekėjo arba jo įgalioto asmens pareigų pavadinimas: | E34: Viešųjų pirkimų specialistė
A36: Pasirašančio asmens vardas ir pavardė: | E36: Dovilė Andrijauskaitė
A83: 6885-7 2022-07-17 18:09:47
